bitfinex-derivatives/quotes_ETHF0:USTF0_20250624
["timestamp","ask_amount","ask_price","bid_price","bid_amount"]
[1750799190585,25.777,2438.4,2438.3,0.65589]
[1750799190790,7.39484,2438.6,2438.4,0.65586]
[1750799190990,25.773,2438.5,2438.4,0.65586]
[1750799192089,15.70775749,2438.7,2438.6,0.65582]
[1750799192284,42.12354749,2438.7,2438.6,0.65582]
[1750799192486,41.46775749,2438.7,2438.6,0.65582]
[1750799192691,41.46775749,2438.7,2438.5,0.65584]
[1750799192887,42.12356749,2438.7,2438.5,0.65584]
[1750799193395,42.12356749,2438.7,2438.1,4.84766]
[1750799193590,42.12356749,2438.7,2438.5,0.65583]
[1750799194088,42.12356749,2438.7,2438.4,0.65586]
[1750799194283,0.65582,2438.6,2438.4,0.65586]
[1750799194488,8.96875749,2438.7,2438.2,1.63983]
[1750799194699,25.736,2438.6,2438.5,0.65583]
[1750799195597,3.86361,2438.7,2438.5,0.65583]
[1750799195787,25.736,2438.6,2438.5,0.65583]
[1750799196089,3.2078,2438.7,2438.6,0.65582]
[1750799196300,0.0523,2438.8,2438.7,0.65579]
[1750799196594,25.7713,2438.8,2438.6,0.6669]
[1750799196794,0.65579,2438.7,2438.6,0.6669]
[1750799196986,26.42709,2438.8,2438.6,1.32272]
[1750799197381,0.65579,2438.7,2438.6,1.32272]
[1750799197692,26.42708,2438.8,2438.6,1.32272]
[1750799198289,25.706,2438.7,2438.6,1.32272]
[1750799199894,0.0523,2438.8,2438.7,0.65579]
[1750799200088,25.7563,2438.8,2438.7,2.62619]
[1750799200291,25.704,2438.8,2438.7,2.62619]
[1750799201394,0.3496,2438.9,2438.8,0.65577]
[1750799201591,26.0396,2438.9,2438.8,0.65577]
[1750799201791,25.74,2438.9,2438.8,1.99617]
[1750799201993,25.738,2438.9,2438.8,1.99617]
[1750799202202,0.05,2438.9,2438.8,1.99617]
[1750799202389,25.73,2438.9,2438.8,1.99617]
[1750799202794,3.2601,2439.1,2439.0,0.65571]
[1750799202996,28.9401,2439.1,2439.0,0.65571]
[1750799203298,29.59579,2439.1,2439.0,0.65571]
[1750799203496,0.65571,2439.0,2438.9,0.6703]
[1750799203696,29.5958,2439.1,2438.9,0.6703]
[1750799203896,0.65571,2439.0,2438.9,0.6703]
[1750799204097,29.5958,2439.1,2439.0,0.65571]
[1750799204392,29.5958,2439.1,2438.9,1.32602]
[1750799204393,0.65571,2439.0,2438.9,1.32602]
[1750799204999,26.31471,2439.0,2438.9,1.32602]
[1750799205201,25.659,2439.0,2438.9,1.32602]
[1750799205590,3.2601,2439.1,2439.0,0.65571]
[1750799205896,28.9171,2439.1,2439.0,0.65571]
[1750799206097,28.8548,2439.1,2439.0,0.65571]
[1750799206288,3.2078,2439.1,2439.0,2.77951]
[1750799206492,26.0043,2439.3,2439.2,0.65566]
[1750799206899,25.705,2439.3,2439.2,0.65566]
[1750799207494,0.05,2439.3,2439.2,0.65566]
[1750799207790,0.05,2439.3,2439.2,0.72566]
[1750799207995,0.05,2439.3,2439.2,2.78306]
[1750799208499,0.7182,2439.8,2439.2,10.99086]
[1750799208700,7.52648,2439.9,2439.8,0.6555]
[1750799208900,32.516,2439.9,2439.8,0.6555]
[1750799209104,6.871,2439.9,2439.8,0.6555]
[1750799209299,3.2078,2440.0,2439.9,0.65547]
[1750799209595,5.76095749,2440.3,2440.0,0.65544]
[1750799209596,0.0522,2440.1,2440.0,0.65544]
[1750799209798,25.6932,2440.1,2440.0,0.65544]
[1750799210104,0.0522,2440.1,2440.0,10.01324]
[1750799210299,51.09904,2440.8,2440.1,1.63855]
[1750799210494,26.29926,2440.7,2440.5,0.6553]
[1750799210694,10.73305,2440.8,2440.6,0.65528]
[1750799210897,25.643,2440.7,2440.6,0.65528]
[1750799211096,26.29826,2440.7,2440.5,0.65529]
[1750799211501,25.643,2440.7,2440.5,0.65529]
[1750799211709,3.2078,2440.8,2440.7,0.65526]
[1750799212002,25.635,2440.8,2440.7,0.65526]
[1750799212207,6.87,2441.0,2440.6,3.2078]
[1750799212403,25.638,2440.9,2440.8,0.65523]
[1750799212798,25.638,2440.9,2440.7,1.3425]
[1750799213106,25.633,2440.9,2440.8,0.65523]
[1750799214297,26.27721,2440.9,2440.7,1.99774]
[1750799214495,25.622,2440.9,2440.7,1.3425]
[1750799214901,25.615,2440.9,2440.8,0.65523]
[1750799216299,3.86296,2441.1,2440.9,0.65518]
[1750799216606,0.6934,2441.2,2441.1,0.65515]
[1750799216902,26.2844,2441.2,2441.1,0.65515]
[1750799217406,26.93952,2441.2,2441.1,0.65515]
[1750799217706,26.93952,2441.2,2440.4,6.867]
[1750799217707,0.65525,2440.8,2440.4,6.867]
[1750799217902,0.65525,2440.8,2440.4,9.287]
[1750799218206,0.65525,2440.8,2440.7,0.65526]
[1750799218400,9.62397749,2440.9,2440.7,0.65526]
[1750799218600,0.65523,2440.8,2440.7,0.65526]
[1750799218796,8.96875749,2440.9,2440.7,0.65526]
[1750799219001,9.62396749,2440.9,2440.7,0.65526]
[1750799219205,0.65523,2440.8,2440.7,0.65526]
[1750799219806,0.65523,2440.8,2440.6,0.65526]
[1750799220009,0.65523,2440.8,2440.7,0.65526]
[1750799221105,8.96875749,2440.9,2440.4,8.2567]
[1750799221306,0.65528,2440.7,2440.5,0.6553]
[1750799221506,0.65528,2440.7,2440.5,0.74]
[1750799221507,3.86308,2440.6,2440.5,0.74]
[1750799221707,0.65532,2440.5,2440.3,0.65536]
[1750799222016,0.65532,2440.5,2440.4,0.65534]
[1750799222910,3.9182,2440.6,2440.5,0.65531]
[1750799223102,4.57348,2440.6,2440.5,0.65531]
[1750799223300,4.57348,2440.6,2440.4,0.65532]
[1750799223301,0.65531,2440.5,2440.4,0.65532]
[1750799223907,3.9182,2440.6,2440.5,0.65531]
[1750799225803,8.96875749,2441.5,2440.7,1.63815]
[1750799226006,3.2078,2441.1,2441.0,0.65518]
[1750799226506,3.86295,2441.1,2441.0,0.65518]
[1750799226708,3.2078,2441.1,2441.0,0.65518]
[1750799227012,3.2078,2441.1,2440.9,0.65518]
[1750799227211,3.86296,2441.1,2440.8,0.6607]
[1750799227513,3.86295,2441.1,2441.0,0.65518]
[1750799227703,3.2078,2441.1,2441.0,0.65518]
[1750799228306,3.86295,2441.1,2441.0,0.65518]
[1750799228708,3.2078,2441.1,2441.0,0.65518]
[1750799231613,28.7308,2441.1,2441.0,0.65518]
[1750799232616,29.38595,2441.1,2441.0,0.65518]
[1750799232813,28.7308,2441.1,2441.0,0.65518]
[1750799233013,28.7188,2441.1,2441.0,0.65518]
[1750799235716,25.511,2441.1,2441.0,0.65518]
[1750799236213,1.65101,2441.3,2441.2,0.65512]
[1750799236420,27.44516425,2441.3,2441.2,0.65512]
[1750799236918,28.10025425,2441.3,2441.2,0.65512]
[1750799238315,0.65519,2441.0,2440.9,0.65518]
[1750799238522,0.65519,2441.0,2440.7,0.0637515]
[1750799238523,25.476,2441.0,2440.7,0.0637515]
[1750799238817,25.476,2441.0,2440.9,0.6552]
[1750799239017,26.45014534,2441.0,2440.9,0.6552]
[1750799239415,26.43014534,2441.0,2440.9,0.6552]
[1750799243619,32.19110283,2441.0,2440.5,3.13258481]
[1750799243821,0.65536,2440.3,2440.2,0.44]
[1750799244024,0.65536,2440.3,2439.8,0.65548]
[1750799244025,0.65546,2440.0,2439.8,0.65548]
[1750799244220,29.53093244,2439.9,2439.8,6.21548]
[1750799244618,3.2078,2440.0,2439.9,0.65547]
[1750799244921,29.68411608,2440.0,2439.9,2.01547]
[1750799245424,28.7098,2440.0,2439.9,2.01547]
[1750799245926,0.7069,2440.2,2440.1,0.65542]
[1750799246123,3.83074763,2440.7,2440.4,1.63831]
[1750799246124,25.497,2440.7,2440.4,1.63831]
[1750799246321,25.497,2440.7,2440.6,0.65528]
[1750799246521,26.47185595,2440.7,2440.6,0.65528]
[1750799246723,25.497,2440.7,2440.6,0.65528]
[1750799246921,3.2078,2440.8,2440.7,0.65526]
[1750799247123,29.691548,2440.8,2440.7,0.65526]
[1750799248122,0.974748,2440.8,2440.7,0.65526]
[1750799248324,0.974748,2440.8,2440.5,12.0751]
[1750799248325,25.522,2440.9,2440.8,0.65523]
[1750799248633,26.49683104,2440.9,2440.8,0.65523]
[1750799250627,3.2078,2441.1,2441.0,0.65518]
[1750799250827,29.68466985,2441.1,2441.0,0.65518]
[1750799251024,29.68466985,2441.1,2441.0,0.7189315]
[1750799251931,29.68066985,2441.1,2441.0,0.7189315]
[1750799252227,4.18366985,2441.1,2441.0,0.7189315]
[1750799252427,29.68066985,2441.1,2441.0,0.7189315]
[1750799253030,4.18366985,2441.1,2441.0,0.7189315]
[1750799253230,29.67066985,2441.1,2441.0,0.7189315]
[1750799254435,30.32581985,2441.1,2441.0,0.7189315]
[1750799254738,29.67066985,2441.1,2441.0,0.7189315]
[1750799256534,26.46286985,2441.1,2441.0,0.7189315]
[1750799256734,29.67066985,2441.1,2441.0,0.7189315]
[1750799257531,29.66973889,2441.1,2441.0,0.7189315]
[1750799258035,0.2982,2441.3,2441.2,0.65512]
[1750799258334,26.42688047,2441.3,2441.2,0.65512]
[1750799258534,0.97488047,2441.3,2441.2,0.65512]
[1750799258836,4.6435,2441.7,2441.3,0.65509]
[1750799258837,25.446,2441.4,2441.3,0.65509]
[1750799259136,9.9318,2441.7,2441.6,0.65501]
[1750799259335,10.90648132,2441.7,2441.6,0.65501]
[1750799259535,4.59967702,2441.7,2441.6,0.65501]
[1750799259739,0.4171957,2441.7,2441.6,0.70501]
[1750799259932,10.6333,2442.3,2442.2,0.65485]
[1750799260133,4.88352022,2442.3,2442.2,0.65485]
[1750799260340,30.35952022,2442.3,2442.2,0.65485]
[1750799260525,30.35862429,2442.3,2441.7,12.0086]
[1750799260730,0.65496,2441.8,2441.7,0.7171]
[1750799260930,25.477,2441.9,2441.8,0.65496]
[1750799261239,26.13195,2441.9,2441.7,1.37207]
[1750799261432,26.13195,2441.9,2441.8,0.65496]
[1750799262741,26.13195,2441.9,2441.7,1.37207]
[1750799263437,26.13195,2441.9,2441.8,0.65496]
[1750799263837,25.477,2441.9,2441.8,0.65496]
[1750799264535,3.2078,2442.0,2441.9,0.65493]
[1750799264737,25.466,2442.0,2441.9,0.65493]
[1750799264942,0.65488,2442.1,2442.0,0.65491]
[1750799265238,0.65487,2442.2,2442.1,0.65488]
[1750799265540,0.65492,2442.0,2441.9,0.65493]
[1750799265736,0.65494,2441.9,2441.8,0.65495]
[1750799266039,0.65494,2441.9,2441.3,2.8221]
[1750799266040,0.65498,2441.8,2441.3,2.8221]
[1750799266239,0.6611,2441.7,2441.6,0.65499]
[1750799266433,4.52389,2441.7,2441.6,1.82]
[1750799267140,4.52389,2441.7,2441.6,2.47501]
[1750799267538,4.52389,2441.7,2441.6,1.82]
[1750799267736,4.52389,2441.7,2441.1,48.0399]
[1750799267737,16.01215133,2441.7,2441.0,0.0637515]
[1750799267936,0.65515,2441.1,2441.0,3.6289115]
[1750799268437,26.11914,2441.2,2441.1,0.65515]
[1750799268640,26.11914,2441.2,2441.1,1.85515]
[1750799269045,26.11914,2441.2,2441.1,1.2]
[1750799269246,26.11914,2441.2,2441.1,1.85515]
[1750799270140,28.6658,2441.3,2441.2,0.65512]
[1750799270345,28.6658,2441.3,2441.2,0.78512]
[1750799270936,29.32089,2441.3,2441.2,0.78512]
[1750799271641,28.6658,2441.3,2441.2,0.78512]
[1750799272743,3.2078,2441.3,2441.2,0.78512]
[1750799273134,28.6458,2441.3,2441.2,0.78512]
[1750799274238,3.2078,2441.3,2441.2,0.78512]
[1750799278744,25.438,2441.4,2441.3,0.65509]
[1750799278938,26.09307,2441.4,2441.3,0.65509]
[1750799279438,26.09307,2441.4,2441.3,0.7188415]
[1750799281745,25.438,2441.4,2441.3,0.7188415]
[1750799281948,3.2078,2441.6,2441.5,0.65504]
[1750799282151,29.56337656,2441.6,2441.5,0.65504]
[1750799282848,0.65504,2441.5,2441.4,1.33385]
[1750799283044,1.62761656,2441.5,2441.4,0.6788]
[1750799283251,1.62761656,2441.5,2441.4,1.33387]
[1750799283455,0.97257656,2441.5,2441.4,1.33387]
[1750799283953,0.65504,2441.5,2441.4,0.6788]
[1750799284161,1.6278835,2441.5,2441.4,0.6788]
[1750799284558,26.9948835,2441.5,2441.4,1.33385]
[1750799284851,0.65507,2441.4,2441.3,0.0637515]
[1750799285542,1.62814467,2441.4,2441.3,0.0637515]
[1750799286049,0.65507,2441.4,2441.3,0.7188215]
[1750799286250,1.62818795,2441.4,2441.3,0.7188215]
[1750799287153,0.97311795,2441.4,2441.3,0.7188215]
[1750799289151,1.62818795,2441.4,2441.3,0.7188215]
[1750799289850,0.97311795,2441.4,2441.3,0.7188215]
[1750799290945,1.62818795,2441.4,2441.3,0.7188215]
[1750799291549,0.97311795,2441.4,2441.3,0.7188215]
[1750799294166,28.5318,2441.6,2441.5,0.65504]
[1750799294363,29.5056359,2441.6,2441.5,0.65504]
[1750799294658,26.2978359,2441.6,2441.5,0.65504]
[1750799294864,26.2978359,2441.6,2441.5,2.66464]
[1750799295459,0.9738359,2441.6,2441.5,2.69464]
[1750799295662,28.5268,2442.2,2442.0,0.65489]
[1750799295867,28.5268,2442.2,2441.9,0.65493]
[1750799295868,1.62922048,2442.1,2441.9,0.65493]
[1750799296160,0.97432048,2442.0,2441.9,0.65493]
[1750799296558,0.9740046,2442.0,2441.7,9.2218826]
[1750799296758,0.9740046,2441.9,2441.8,1.3907]
[1750799296966,0.97399886,2441.9,2441.8,2.04566]
[1750799297166,25.334,2442.1,2442.0,0.65491]
[1750799297467,26.30735545,2442.1,2442.0,0.65491]
[1750799298357,0.97335545,2442.1,2442.0,0.65491]
[1750799298762,0.97335545,2442.1,2442.0,1.32351]
[1750799299364,3.2078,2442.2,2442.1,0.65488]
[1750799299673,3.2078,2442.2,2442.1,2.11088]
[1750799299862,3.2078,2442.2,2442.1,5.1549526]
[1750799300061,0.2993,2442.3,2442.2,0.65485]
[1750799300458,28.5248,2442.5,2442.4,0.6548]
[1750799301867,28.5228,2442.5,2442.4,0.6548]
[1750799302366,28.5228,2442.5,2442.3,3.0440726]
[1750799302367,0.6864,2442.7,2442.6,0.65475]
[1750799302566,26.0014,2442.7,2442.6,0.65475]
[1750799302970,0.6864,2442.7,2442.6,0.65475]
[1750799303365,0.71373164,2442.9,2442.8,0.65469]
[1750799303366,0.2991,2442.9,2442.8,0.65469]
[1750799303570,0.2991,2442.9,2442.8,3.6987626]
[1750799303774,0.2991,2442.9,2442.8,3.7287626]
[1750799303973,0.2991,2442.9,2442.8,5.0904626]
[1750799304375,0.2991,2442.9,2442.8,10.0804626]
[1750799304671,3.2078,2443.5,2443.4,0.65453]
[1750799305070,8.2078,2443.5,2442.7,3.2078]
[1750799305273,35.43087342,2443.6,2442.8,0.65469]
[1750799305274,3.2078,2442.9,2442.8,0.65469]
[1750799305475,29.19548,2442.9,2442.7,0.7192]
[1750799305674,28.5408,2442.9,2442.8,0.65469]
[1750799305872,0.6743,2443.3,2442.8,3.2078]
[1750799306071,29.88867,2443.3,2443.1,0.6546]
[1750799306575,0.65458,2443.2,2443.1,0.6546]
[1750799306871,28.5598,2443.3,2443.2,0.65458]
[1750799307076,3.2078,2443.3,2443.2,0.65458]
[1750799307267,25.347,2443.5,2443.4,0.65453]
[1750799307469,3.2078,2443.6,2443.5,0.6545]
[1750799308166,3.8821,2443.9,2443.5,0.03]
[1750799308475,29.88951,2443.9,2443.7,0.65443]
[1750799308673,29.2351,2443.9,2443.3,5.74730901]
[1750799308874,0.0637515,2443.7,2443.6,0.65447]
[1750799309671,0.7182015,2443.7,2443.5,0.65449]
[1750799309877,0.0637515,2443.7,2443.3,42.1585]
[1750799310078,0.65454,2443.4,2443.3,0.41]
[1750799310677,0.65456,2443.3,2443.2,0.7115]
[1750799310877,3.86236,2443.3,2443.2,0.7115]
[1750799311579,3.86236,2443.3,2443.2,1.36608]
[1750799312679,3.86236,2443.3,2443.2,0.7115]
[1750799313472,3.86236,2443.3,2443.2,1.36608]
[1750799313666,3.2078,2443.3,2443.2,1.36608]
[1750799314079,3.86236,2443.3,2443.2,0.7115]
[1750799314580,3.86236,2443.3,2443.2,1.36608]
[1750799314778,3.86236,2443.3,2443.2,0.7115]
[1750799315579,3.86236,2443.3,2443.2,1.36608]
[1750799316081,3.86236,2443.3,2443.2,1.4298315]
[1750799316380,3.2078,2443.3,2443.2,1.4298315]
[1750799318073,3.86236,2443.3,2443.2,1.4298315]
[1750799318385,3.86236,2443.3,2443.2,0.0637515]
[1750799319990,14.8478,2443.3,2442.4,0.65478]
[1750799320280,0.65479,2442.5,2442.4,2.50478]
[1750799320475,0.65479,2442.5,2442.4,1.85]
[1750799320674,1.36399,2442.5,2442.4,1.85]
[1750799321179,1.36399,2442.5,2442.4,2.5048]
[1750799321381,26.0532,2442.5,2442.4,0.6748]
[1750799321776,3.2078,2442.6,2442.5,0.65477]
[1750799322082,0.65477,2442.5,2442.4,0.65478]
[1750799322470,29.20956,2442.6,2442.5,0.65477]
[1750799323276,29.21556,2442.6,2442.5,0.65477]
[1750799323887,0.65478,2442.5,2442.4,0.65479]
[1750799324587,29.20057,2442.6,2442.4,0.65479]
[1750799324988,3.86257,2442.6,2442.5,0.65477]
[1750799325187,29.20157,2442.6,2442.5,0.65477]
[1750799325781,28.5468,2442.6,2442.5,0.65477]
[1750799326093,0.65477,2442.5,2442.4,0.65478]
[1750799326590,0.65478,2442.5,2442.4,0.65478]
[1750799327584,29.19756,2442.6,2442.5,0.65477]
[1750799330789,28.5428,2442.6,2442.5,0.65477]
[1750799331088,29.19755,2442.6,2442.5,0.6706]
[1750799331580,29.19755,2442.6,2442.5,1.32537]
[1750799334589,28.5428,2442.6,2442.5,1.32537]
[1750799334892,29.19755,2442.6,2442.5,1.32537]
[1750799335395,3.2078,2442.6,2442.5,1.32537]
[1750799335593,25.308,2442.9,2442.6,1.63687]
[1750799335785,25.96269,2442.9,2442.8,0.65469]
[1750799335991,25.308,2442.9,2442.8,0.65469]
[1750799336494,25.308,2442.9,2442.7,2.0685]
[1750799336690,25.308,2442.9,2442.8,0.65469]
[1750799337095,25.96267,2442.9,2442.8,0.65469]
[1750799338406,3.2078,2443.0,2442.9,0.65467]
[1750799338697,28.5148,2443.0,2442.9,0.65467]
[1750799340294,28.5138,2443.0,2442.9,0.65467]
[1750799341492,3.2078,2443.3,2442.9,3.04113805]
[1750799341693,0.6664,2443.5,2443.3,0.65456]
[1750799341694,25.306,2443.4,2443.3,0.65456]
[1750799341895,28.5138,2443.6,2443.4,3.04113805]
[1750799342085,29.1683,2443.6,2443.2,4.46063805]
[1750799342399,28.5138,2443.6,2443.5,0.6545]
[1750799343201,3.2078,2443.6,2443.5,0.6545]
[1750799343397,3.2078,2443.6,2443.5,2.7482]
[1750799343991,7.29539,2444.0,2443.5,2.0937]
[1750799343992,25.305,2443.7,2443.5,2.0937]
[1750799344301,25.305,2443.8,2443.7,0.65443]
[1750799345091,25.305,2443.8,2443.5,2.0937]
[1750799345489,25.95944,2443.8,2443.6,0.65446]
[1750799345695,0.65445,2443.7,2443.6,0.65446]
[1750799346593,25.305,2443.8,2443.7,0.65445]
[1750799347097,25.95942,2443.8,2443.7,0.65445]
[1750799347297,25.305,2443.8,2443.7,0.65445]
[1750799347604,25.95943,2443.8,2443.7,0.65445]
[1750799347901,25.305,2443.8,2443.7,0.65445]
[1750799348507,3.86221,2443.9,2443.8,0.65442]
[1750799348699,30.13575277,2443.9,2443.8,0.65442]
[1750799349399,29.48134277,2443.9,2443.8,0.65442]
[1750799349606,28.5098,2443.9,2443.8,0.65442]
[1750799350504,28.5078,2443.9,2443.8,0.65442]
[1750799351109,3.2078,2443.9,2443.8,0.65442]
[1750799351407,28.5078,2443.9,2443.8,0.65442]
[1750799351808,3.2078,2443.9,2443.8,0.65442]
[1750799352006,28.5058,2443.9,2443.8,0.65442]
[1750799353310,3.2078,2443.9,2443.8,0.65442]
[1750799353512,28.5058,2443.9,2443.8,0.65442]
[1750799355401,28.5058,2443.9,2443.7,0.65443]
[1750799355603,0.65446,2443.7,2443.6,0.65446]
[1750799355803,7.9429,2443.8,2443.2,3.72157]
[1750799355998,3.2078,2443.5,2443.4,0.65453]
[1750799356207,28.5038,2443.5,2443.1,0.65461]
[1750799356404,3.86239,2443.2,2443.1,1.49461]
[1750799356709,29.16339,2443.2,2443.1,1.49461]
[1750799356907,28.5088,2443.2,2443.1,1.49461]
[1750799357806,28.5038,2443.2,2443.1,1.49461]
[1750799358000,3.2078,2443.2,2443.1,1.49461]
[1750799358205,28.5048,2443.2,2443.1,1.49461]
[1750799359914,28.5068,2443.2,2443.1,1.49461]
[1750799360410,25.299,2443.2,2443.1,1.49461]
[1750799362315,1.36443,2443.4,2443.3,0.65456]
[1750799362615,26.66143,2443.4,2443.3,0.65456]
[1750799362815,26.0069,2443.4,2442.9,1.4002]
[1750799363016,27.3421,2443.4,2442.9,3.9702]
[1750799363314,0.65458,2443.3,2443.2,0.65458]
[1750799363518,0.65458,2443.3,2443.2,0.83458]
[1750799363809,0.65458,2443.3,2443.2,0.83459]
[1750799367522,27.99665,2443.4,2443.3,0.65456]
[1750799367721,28.97123552,2443.4,2443.3,0.65456]
[1750799368625,0.65458,2443.3,2443.2,0.65457]
[1750799368926,0.65458,2443.3,2443.2,0.79457]
[1750799369121,1.62976355,2443.3,2443.2,0.79457]
[1750799370727,0.65458,2443.3,2443.2,0.79457]
[1750799371136,1.62979426,2443.3,2443.2,0.79457]
[1750799371538,0.97521426,2443.3,2443.2,0.79457]
[1750799372134,0.97521426,2443.3,2443.0,3.03972329]
[1750799372330,0.65461,2443.1,2443.0,1.37]
[1750799372531,25.296,2443.1,2443.0,2.02464]
[1750799372835,3.2078,2443.2,2443.1,0.65461]
[1750799373035,36.1183775,2443.2,2443.1,0.65461]
[1750799373637,26.2715775,2443.2,2443.1,0.70461]
[1750799373830,25.296,2443.2,2443.1,0.70461]
[1750799374635,0.65457,2443.3,2443.2,0.65459]
[1750799374831,26.27142388,2443.3,2443.2,0.7183415]
[1750799375439,26.92598388,2443.3,2443.2,0.7183415]
[1750799376738,26.92498388,2443.3,2443.2,0.7183415]
[1750799376926,1.62998388,2443.3,2443.2,0.7183415]
[1750799377126,26.92498388,2443.3,2443.2,0.7183415]
[1750799378238,30.13278388,2443.3,2443.2,0.7183415]
[1750799378641,4.83778388,2443.3,2443.2,0.7183415]
[1750799379039,29.47822388,2443.3,2443.2,0.7183415]
[1750799380343,30.13278388,2443.3,2443.2,0.7183415]
[1750799380543,29.47822388,2443.3,2443.2,0.7183415]
[1750799380935,30.13278388,2443.3,2443.2,0.7183415]
[1750799381742,30.13278388,2443.3,2443.2,0.0637515]
[1750799382642,0.65475,2442.6,2442.5,0.65476]
[1750799382844,25.94875,2442.6,2442.5,2.75477]
[1750799383146,26.92504249,2442.6,2442.5,2.1]
[1750799383544,25.94875,2442.6,2442.5,2.75477]
[1750799384243,3.8768,2442.7,2442.6,0.65475]
[1750799384542,37.43844479,2442.7,2442.6,1.48475]
[1750799384737,36.78372479,2442.7,2442.6,1.48475]
[1750799387436,37.43844479,2442.7,2442.6,1.48475]
[1750799387633,37.44044479,2442.7,2442.6,1.48475]
[1750799388254,3.2078,2442.7,2442.6,1.48475]
[1750799388443,29.15952,2442.7,2442.6,1.48475]
[1750799388643,28.5048,2442.7,2442.6,1.48475]
[1750799389244,28.5048,2442.7,2442.6,2.79075]
[1750799389844,28.5048,2442.7,2442.6,2.8545015]
[1750799390955,28.5048,2442.7,2442.6,2.79075]
[1750799391949,28.5048,2442.7,2442.6,2.8545015]
[1750799393543,29.15952,2442.7,2442.6,1.5485015]
[1750799393850,29.15952,2442.7,2442.6,0.8937515]
[1750799394443,29.15952,2442.7,2442.6,1.5485015]
[1750799394643,28.5048,2442.7,2442.6,1.5485015]
[1750799398652,25.297,2442.7,2442.6,1.5485015]
[1750799400648,1.63636,2443.4,2442.6,13.77808479]
[1750799400851,26.97749685,2443.3,2442.8,1.63674]
[1750799401152,26.65768,2443.3,2443.2,0.65459]
[1750799401351,27.63207843,2443.3,2443.2,0.3476207]
[1750799402254,34.26907843,2443.3,2443.2,0.3476207]
[1750799405450,1.63647,2443.2,2442.6,2.44828481]
[1750799405762,3.69444329,2442.7,2442.6,0.07]
[1750799405951,35.94412172,2442.7,2441.8,2.44828481]
[1750799406256,3.86263,2442.3,2442.2,0.65485]
[1750799406462,30.12902843,2442.3,2442.2,0.25]
[1750799406648,30.12902843,2442.3,2442.1,0.65487]
[1750799406845,29.15463,2442.3,2442.1,1.45487]
[1750799407245,0.65485,2442.2,2442.1,1.45486]
[1750799408353,0.65485,2442.2,2442.1,0.8]
[1750799409250,0.65495,2441.9,2441.8,0.65496]
[1750799409544,25.94895,2441.9,2441.8,1.77]
[1750799413550,25.94895,2441.9,2441.8,2.42496]
[1750799414251,3.2078,2442.0,2441.8,2.42496]
[1750799414458,3.2078,2442.0,2441.9,0.65493]
[1750799414658,3.2078,2442.0,2441.9,3.64553]
[1750799417971,3.2078,2442.0,2441.9,1.6088]
[1750799418154,3.86271,2442.0,2441.9,1.6088]
[1750799419359,3.86271,2442.0,2441.9,2.3274815]
[1750799425366,3.86271,2442.0,2441.9,1.6725515]
[1750799425664,3.86271,2442.0,2441.9,2.3274815]
[1750799426458,3.2078,2442.0,2441.9,2.3274815]
[1750799426656,3.86271,2442.0,2441.9,1.6725515]
[1750799427555,3.86271,2442.0,2441.9,2.3274815]
[1750799428461,3.86271,2442.0,2441.9,1.6725515]
[1750799430367,3.86271,2442.0,2441.9,0.9937515]
[1750799430368,13.53843329,2442.0,2441.9,0.9937515]
[1750799430562,14.51177259,2442.0,2441.9,0.0637515]
[1750799431059,15.82737259,2442.0,2441.9,0.00351743]
[1750799432668,20.82737259,2442.0,2441.9,0.00351743]
[1750799434368,4.8360493,2442.0,2441.9,0.00351743]
[1750799434674,36.7660493,2442.0,2441.9,0.00351743]
[1750799437166,0.65496,2441.8,2441.7,0.35416694]
[1750799437366,25.94796,2441.8,2441.7,0.35416694]
[1750799437673,26.9212993,2441.8,2441.7,0.35416694]
[1750799437873,26.92573889,2441.8,2441.7,0.35416694]
[1750799439176,26.92573889,2441.8,2441.7,1.00915694]
[1750799439571,0.97777889,2441.8,2441.7,1.00915694]
[1750799439876,26.26977889,2441.8,2441.7,1.58915694]
[1750799440076,25.292,2441.8,2441.7,1.58915694]
[1750799440671,25.292,2441.8,2441.7,2.30345694]
[1750799443578,33.17202033,2441.8,2441.7,0.04703961]
[1750799444877,33.17202033,2441.8,2441.3,0.6683]
[1750799444878,32.51706033,2441.8,2441.3,0.6683]
[1750799445177,0.65507,2441.4,2441.3,1.79338]
[1750799445480,25.94507,2441.4,2441.3,1.79338]
[1750799446280,25.29,2441.4,2441.3,1.79338]
[1750799446673,0.65502,2441.6,2441.5,0.65504]
[1750799446875,33.55064125,2441.6,2441.5,0.65504]
[1750799447176,0.65504,2441.5,2441.4,2.06655]
[1750799447377,0.97762125,2441.5,2441.4,2.06655]
[1750799447577,7.284,2441.7,2441.6,0.655]
[1750799447777,33.5506063,2441.7,2441.6,0.655]
[1750799449075,1.6326063,2441.7,2441.6,0.655]
[1750799449282,33.5506063,2441.7,2441.6,0.655]
[1750799450192,1.6326063,2441.7,2441.6,0.655]
[1750799450391,33.5506063,2441.7,2441.6,0.655]
[1750799452194,0.9776063,2441.7,2441.6,3.70472329]
[1750799452396,26.9263,2442.0,2441.5,2.44828481]
[1750799452692,0.65497,2441.8,2441.7,0.65497]
[1750799452894,1.63249733,2441.8,2441.7,0.65497]
[1750799453097,1.63249733,2441.8,2441.7,1.37147]
[1750799453297,1.63249733,2441.8,2441.3,8.9987815]
[1750799453298,0.65507,2441.4,2441.3,1.3871415]
[1750799453499,25.287,2441.4,2441.3,1.3871415]
[1750799453796,26.26452733,2441.4,2441.3,1.3871415]
[1750799453989,26.91959733,2441.4,2441.3,0.7320515]
[1750799454196,26.91959733,2441.4,2441.3,1.3871515]
[1750799455397,26.91959733,2441.4,2441.3,0.0637515]
[1750799458696,1.63259733,2441.4,2441.3,0.0637515]